bitfinex-derivatives/quotes_BNBF0:USTF0_20230831
["timestamp","ask_amount","ask_price","bid_price","bid_amount"]
[1693502587000,0.07362398,217.68,217.22,0.19524757]
[1693502587197,0.84481713,217.67,217.21,0.19524757]
[1693502587404,0.84481713,217.67,217.22,0.19524757]
[1693502587605,0.84481713,217.67,217.2,0.19524757]
[1693502587804,0.84481713,217.67,217.21,0.19524757]
[1693502588002,0.84481713,217.67,217.2,0.19524757]
[1693502588199,0.91844111,217.67,217.2,0.19524757]
[1693502588403,0.84481713,217.66,217.2,0.19524757]
[1693502589002,0.91844111,217.67,217.19,0.19524757]
[1693502589203,0.84487263,217.66,217.2,0.19524757]
[1693502589404,0.84487263,217.66,217.17,0.07401033]
[1693502589405,0.84487263,217.66,217.18,0.19524757]
[1693502590206,0.91849661,217.66,217.18,0.19524757]
[1693502590407,0.84487263,217.65,217.18,0.19524757]
[1693502591001,0.07362398,217.62,217.18,0.19524757]
[1693502591204,0.07362398,217.62,217.06,0.14802066]
[1693502591205,0.91849661,217.61,217.14,0.19524757]
[1693502591400,0.84487263,217.6,217.15,0.19524757]
[1693502591599,0.84487263,217.6,217.13,0.19524757]
[1693502591806,0.84487263,217.6,217.14,0.19524757]
[1693502592002,0.84487263,217.6,217.13,0.2692579]
[1693502592202,0.84487263,217.6,217.14,0.19524757]
[1693502592402,0.91849661,217.6,217.14,0.19524757]
[1693502592609,0.07362398,217.6,217.14,0.19524757]
[1693502592810,0.07362398,217.61,217.14,0.2692579]
[1693502593008,0.07362398,217.61,217.15,0.19524757]
[1693502593210,0.07362398,217.62,217.15,0.19524757]
[1693502593410,0.07362398,217.63,217.15,0.2692579]
[1693502593610,0.84501612,217.62,217.16,0.19524757]
[1693502594006,0.9186401,217.62,217.16,0.19524757]
[1693502594210,0.07362398,217.62,217.16,0.19524757]
[1693502595010,0.07362398,217.63,217.16,0.19524757]
[1693502595211,0.84501749,217.62,217.16,0.19524757]
[1693502595810,0.91864147,217.62,217.16,0.19524757]
[1693502596014,0.07362398,217.67,217.19,0.07401033]
[1693502596307,0.07362398,217.68,217.2,0.2692579]
[1693502596511,0.84479917,217.67,217.21,0.19524757]
[1693502597109,0.07362398,217.68,217.21,0.19524757]
[1693502597306,0.07362398,217.69,217.21,0.19524757]
[1693502597613,0.07362398,217.7,217.21,0.2692579]
[1693502597813,0.84473525,217.69,217.22,0.19524757]
[1693502599116,0.84473525,217.69,217.22,0.2692579]
[1693502599317,0.84473525,217.69,217.23,0.19524757]
[1693502600116,0.91835923,217.69,217.23,0.19524757]
[1693502600316,0.07362398,217.69,217.23,0.19524757]
[1693502601016,0.07362398,217.7,217.23,0.19524757]
[1693502601417,0.07362398,217.7,217.23,0.2692579]
[1693502601613,0.07362398,217.7,217.24,0.19524757]
[1693502601815,0.07362398,217.71,217.24,0.19524757]
[1693502602017,0.84467734,217.7,217.24,0.19524757]
[1693502602213,0.07362398,217.69,217.24,0.2692579]
[1693502602412,0.07362398,217.69,217.25,0.19524757]
[1693502602617,0.07362398,217.68,217.25,0.19524757]
[1693502602818,0.07362398,217.69,217.24,0.19524757]
[1693502603212,0.07362398,217.67,217.24,0.2692579]
[1693502603514,0.07362398,217.67,217.25,0.2692579]
[1693502603719,0.07362398,217.68,217.26,0.19524757]
[1693502604518,0.07362398,217.73,217.31,0.07401033]
[1693502604718,0.07362398,217.73,217.32,0.19524757]
[1693502604919,0.07362398,217.75,217.32,0.19524757]
[1693502605121,0.07362398,217.74,217.3,0.2692579]
[1693502605322,0.07362398,217.74,217.31,0.19524757]
[1693502605724,2.45413282,217.87,217.31,0.19524757]
[1693502605725,0.07362398,217.75,217.31,0.19524757]
[1693502605916,0.07362398,217.75,217.3,0.19524757]
[1693502606120,0.07362398,217.75,217.31,0.19524757]
[1693502606522,0.07362398,217.75,217.32,0.19524757]
[1693502606723,0.07362398,217.75,217.3,0.19524757]
[1693502606923,0.07362398,217.76,217.3,0.19524757]
[1693502607122,0.07362398,217.76,217.29,0.19524757]
[1693502608125,0.07362398,217.76,217.29,0.2692579]
[1693502608329,0.07362398,217.76,217.3,0.19524757]
[1693502608820,0.07362398,217.77,217.3,0.19524757]
[1693502609026,0.91804803,217.76,217.29,0.19524757]
[1693502609219,0.07362398,217.76,217.3,0.19524757]
[1693502609424,0.07362398,217.76,217.29,0.19524757]
[1693502609623,0.07362398,217.76,217.3,0.19524757]
[1693502609823,0.07362398,217.77,217.29,0.19524757]
[1693502610127,0.84441431,217.76,217.29,0.19524757]
[1693502611125,0.07362398,217.77,217.29,0.19524757]
[1693502611429,0.07362398,217.83,217.34,0.07401033]
[1693502611628,0.07362398,217.83,217.35,0.19524757]
[1693502611831,0.07362398,217.86,217.35,0.19524757]
[1693502612128,0.84412394,217.85,217.36,0.19524757]
[1693502612430,0.84412394,217.85,217.37,0.19524757]
[1693502612727,0.84412394,217.84,217.35,0.19524757]
[1693502612928,0.84412394,217.86,217.35,0.19524757]
[1693502613129,0.84414247,217.85,217.33,0.19524757]
[1693502613331,0.91776645,217.87,217.33,0.19524757]
[1693502613528,0.84414247,217.86,217.33,0.19524757]
[1693502613730,0.84414247,217.86,217.32,0.19524757]
[1693502614422,0.84414247,217.86,217.32,0.2692579]
[1693502614622,0.84414247,217.87,217.33,0.19524757]
[1693502614828,0.84414247,217.86,217.33,0.19524757]
[1693502615027,0.84414247,217.88,217.32,0.19524757]
[1693502615231,0.84414247,217.87,217.33,0.19524757]
[1693502615429,0.84414247,217.88,217.31,0.19524757]
[1693502616026,0.84414247,217.89,217.3,0.19524757]
[1693502616223,0.84414247,217.89,217.3,0.2692579]
[1693502616428,0.84414247,217.89,217.31,0.19524757]
[1693502616830,0.84414247,217.9,217.31,0.19524757]
[1693502617029,0.49082656,217.96,217.31,0.19524757]
[1693502617030,0.84414247,217.89,217.31,0.2692579]
[1693502617331,0.84414247,217.88,217.32,0.19524757]
[1693502617531,0.84414247,217.92,217.32,0.19524757]
[1693502617733,0.84414247,217.87,217.32,0.19524757]
[1693502617930,0.84414247,217.86,217.31,0.19524757]
[1693502618230,0.84414247,217.85,217.32,0.19524757]
[1693502618426,0.84414247,217.92,217.31,0.19524757]
[1693502618631,0.84407363,217.91,217.32,0.19524757]
[1693502618827,0.84407363,217.93,217.33,0.19524757]
[1693502619031,0.84407363,217.92,217.32,0.19524757]
[1693502619234,0.84407363,217.93,217.33,0.19524757]
[1693502619533,0.84407363,217.93,217.34,0.19524757]
[1693502619733,0.84407363,217.93,217.31,0.19524757]
[1693502620129,0.84407363,217.94,217.3,0.19524757]
[1693502620330,0.84407363,217.93,217.31,0.19524757]
[1693502620527,0.84407363,217.94,217.3,0.19524757]
[1693502620827,0.84407363,217.93,217.31,0.19524757]
[1693502621034,0.84407363,217.95,217.3,0.2692579]
[1693502621333,0.84407363,217.94,217.31,0.19524757]
[1693502621529,0.84407363,217.95,217.31,0.19524757]
[1693502621834,0.84407363,217.94,217.31,0.19524757]
[1693502622034,0.84407363,217.96,217.3,0.19524757]
[1693502622229,0.84407363,217.95,217.31,0.19524757]
[1693502622433,0.84407363,217.96,217.3,0.19524757]
[1693502622633,0.91769761,217.96,217.3,0.19524757]
[1693502622833,0.84407363,217.95,217.29,0.19524757]
[1693502623028,0.84407363,217.95,217.3,0.19524757]
[1693502623233,0.84407363,217.94,217.29,0.19524757]
[1693502623428,0.84407363,217.96,217.3,0.19524757]
[1693502623635,0.84407363,217.95,217.29,0.19524757]
[1693502623835,0.84407363,217.94,217.29,0.19524757]
[1693502624032,0.84407363,217.96,217.29,0.19524757]
[1693502624334,0.84407363,217.95,217.29,0.19524757]
[1693502624533,0.84407363,217.96,217.29,0.19524757]
[1693502624730,0.84407363,217.95,217.29,0.19524757]
[1693502625038,0.84407363,217.94,217.3,0.19524757]
[1693502625336,0.84407363,217.93,217.31,0.19524757]
[1693502625538,0.84407363,217.96,217.29,0.19524757]
[1693502625738,0.84407363,217.95,217.3,0.19524757]
[1693502625941,0.07362398,217.98,217.29,0.19524757]
[1693502625942,0.84407363,217.97,217.29,0.19524757]
[1693502626237,0.84407363,217.97,217.3,0.19524757]
[1693502626238,0.84407363,217.96,217.3,0.19524757]
[1693502626432,0.84407363,217.96,217.28,0.19524757]
[1693502626637,0.84407363,217.96,217.29,0.19524757]
[1693502626837,0.9174062,217.97,217.3,0.19524757]
[1693502627037,0.84407363,217.96,217.3,0.19524757]
[1693502627838,0.07333257,217.95,217.3,0.2696301]
[1693502628039,0.84407363,217.94,217.31,0.19524757]
[1693502628238,0.84407363,217.94,217.31,0.2696301]
[1693502628434,0.84407363,217.95,217.32,0.19524757]
[1693502628634,0.84407363,217.95,217.37,0.07438253]
[1693502628838,0.84407363,218.01,217.38,0.19524757]
[1693502629039,0.84407363,218.0,217.38,0.19524757]
[1693502629231,0.84407363,218.03,217.38,0.19524757]
[1693502629431,0.84407363,218.02,217.38,0.19524757]
[1693502629638,0.07333257,218.04,217.36,0.07438253]
[1693502629639,0.84407363,218.03,217.37,0.19524757]
[1693502629840,0.9174062,218.02,217.39,0.19524757]
[1693502630039,0.84407363,218.01,217.4,0.19524757]
[1693502630240,0.84407363,218.01,217.41,0.19524757]
[1693502630440,0.84407363,218.01,217.39,0.19524757]
[1693502630640,0.84407363,218.01,217.42,0.19524757]
[1693502630840,0.84407363,218.01,217.43,0.19524757]
[1693502630841,0.9174062,218.01,217.43,0.19524757]
[1693502631033,0.84407363,218.0,217.39,0.19524757]
[1693502631238,0.84407363,218.0,217.4,0.19524757]
[1693502631543,0.84407363,218.0,217.41,0.19524757]
[1693502631835,0.9174062,218.0,217.42,0.19524757]
[1693502632037,0.9174062,218.0,217.43,0.19524757]
[1693502632038,0.84407363,217.99,217.43,0.19524757]
[1693502632241,0.84407363,217.99,217.39,0.19524757]
[1693502632540,0.84407363,217.99,217.4,0.19524757]
[1693502632736,0.84407363,217.99,217.39,0.19524757]
[1693502632941,0.84407363,217.99,217.4,0.19524757]
[1693502633134,0.84407363,217.99,217.37,0.07438253]
[1693502633135,0.84407363,217.99,217.38,0.19524757]
[1693502633840,0.07333257,217.96,217.38,0.19524757]
[1693502634035,0.9174062,217.95,217.39,0.19524757]
[1693502634240,0.84407363,217.94,217.35,0.19524757]
[1693502634442,0.9174062,217.94,217.36,0.19524757]
[1693502634641,0.9174062,217.93,217.34,0.19524757]
[1693502634842,0.84407363,217.92,217.35,0.19524757]
[1693502635043,0.9174062,217.92,217.34,0.2696301]
[1693502635241,0.84407363,217.91,217.35,0.19524757]
[1693502636842,0.07333257,217.9,217.35,0.2696301]
[1693502637041,0.84407363,217.89,217.36,0.19524757]
[1693502637839,0.07333257,217.88,217.38,0.07438253]
[1693502638039,0.84407363,217.87,217.39,0.19524757]
[1693502639943,0.9174062,217.87,217.39,0.2696301]
[1693502640148,0.84407363,217.86,217.4,0.19524757]
[1693502640746,0.9174062,217.86,217.4,0.19524757]
[1693502640946,0.9174062,217.85,217.4,0.19524757]
[1693502641147,0.14666515,217.88,217.4,0.19524757]
[1693502641148,0.07333257,217.86,217.4,0.19524757]
[1693502641343,0.84406171,217.85,217.4,0.19524757]
[1693502641547,0.07333257,217.86,217.4,0.19524757]
[1693502641748,0.8440634,217.85,217.4,0.19524757]
[1693502641951,0.07333257,217.85,217.4,0.2696301]
[1693502642152,0.07333257,217.85,217.41,0.19524757]
[1693502642351,0.07333257,217.85,217.41,0.2696301]
[1693502642652,0.07333257,217.85,217.42,0.19524757]
[1693502643853,0.07333257,217.84,217.42,0.2696301]
[1693502644053,0.07333257,217.83,217.43,0.19524757]
[1693502644254,0.48888386,217.87,217.43,0.19524757]
[1693502644255,0.07333257,217.82,217.43,0.19524757]
[1693502644455,0.07333257,217.82,217.42,0.19524757]
[1693502644652,0.07333257,217.82,217.43,0.19524757]
[1693502644852,0.07333257,217.81,217.44,0.07438253]
[1693502645355,0.07333257,217.81,217.45,0.19524757]
[1693502645753,0.07333257,217.82,217.45,0.2696301]
[1693502645954,0.07333257,217.82,217.46,0.19524757]
[1693502646852,0.07333257,217.82,217.46,0.2696301]
[1693502647048,0.07333257,217.82,217.47,0.19524757]
[1693502647452,0.07333257,217.83,217.47,0.2696301]
[1693502647654,0.07333257,217.83,217.48,0.19524757]
[1693502649354,0.07333257,217.82,217.48,0.19524757]
[1693502649555,0.07333257,217.82,217.47,0.19524757]
[1693502649858,0.07333257,217.82,217.48,0.19524757]
[1693502650656,0.07333257,217.83,217.48,0.2696301]
[1693502650960,0.07333257,217.83,217.49,0.19524757]
[1693502651756,0.07333257,217.82,217.49,0.19524757]
[1693502656360,0.07333257,217.81,217.49,0.19524757]
[1693502656559,0.07333257,217.82,217.49,0.19524757]
[1693502656963,0.07333257,217.81,217.49,0.19524757]
[1693502660164,0.07333257,217.8,217.49,0.19524757]
[1693502660365,0.07333257,217.8,217.48,0.19524757]
[1693502660562,0.07333257,217.8,217.49,0.19524757]
[1693502660761,0.07333257,217.8,217.48,0.19524757]
[1693502660958,0.07333257,217.8,217.49,0.19524757]
[1693502661161,0.07333257,217.8,217.48,0.19524757]
[1693502661364,0.07333257,217.8,217.49,0.19524757]
[1693502661566,0.07333257,217.8,217.48,0.19524757]
[1693502661763,0.07333257,217.8,217.49,0.19524757]
[1693502661964,0.07333257,217.8,217.48,0.19524757]
[1693502662162,0.07333257,217.8,217.49,0.19524757]
[1693502662363,0.07333257,217.8,217.48,0.19524757]
[1693502662563,0.07333257,217.8,217.49,0.19524757]
[1693502662759,0.07333257,217.8,217.48,0.19524757]
[1693502662959,0.07333257,217.8,217.49,0.19524757]
[1693502663164,0.07333257,217.8,217.5,0.19524757]
[1693502663362,0.07333257,217.8,217.48,0.19524757]
[1693502663561,0.07333257,217.8,217.49,0.19524757]
[1693502663762,0.07333257,217.8,217.48,0.2696301]
[1693502663965,0.07333257,217.8,217.49,0.19524757]
[1693502665872,0.07333257,217.78,217.49,0.2696301]
[1693502666070,0.07333257,217.78,217.5,0.19524757]
[1693502666270,0.07333257,217.78,217.49,0.19524757]
[1693502666469,0.07333257,217.78,217.5,0.19524757]
[1693502666771,0.07333257,217.77,217.51,0.19524757]
[1693502666965,0.07333257,217.77,217.5,0.19524757]
[1693502667164,0.07333257,217.77,217.51,0.19524757]
[1693502667367,0.07333257,217.77,217.52,0.19524757]
[1693502667566,0.07333257,217.77,217.53,0.19524757]
[1693502667770,0.07333257,217.77,217.5,0.19524757]
[1693502668067,0.07333257,217.76,217.51,0.19433648]
[1693502670172,0.07333257,217.76,217.5,0.19433648]
[1693502670376,0.07333257,217.76,217.49,0.07438253]
[1693502670377,0.07333257,217.76,217.51,0.19433648]
[1693502670579,0.07333257,217.76,217.52,0.19433648]
[1693502670778,0.07333257,217.76,217.49,0.07438253]
[1693502670779,0.07333257,217.76,217.5,0.19433648]
[1693502670974,0.07333257,217.76,217.51,0.19433648]
[1693502671178,0.07333257,217.76,217.5,0.19433648]
[1693502671374,0.07333257,217.76,217.51,0.19433648]
[1693502671579,0.07333257,217.76,217.52,0.19433648]
[1693502671778,0.07333257,217.77,217.53,0.19433648]
[1693502671977,0.07333257,217.77,217.5,0.19433648]
[1693502672177,0.07333257,217.77,217.51,0.19436081]
[1693502672371,0.07333257,217.76,217.52,0.19436081]
[1693502672571,0.07333257,217.76,217.53,0.19436081]
[1693502672777,0.07333257,217.77,217.49,0.07438253]
[1693502672972,0.07333257,217.77,217.5,0.1943617]
[1693502677375,0.07333257,217.78,217.5,0.1943617]
[1693502677584,0.07333257,217.77,217.5,0.1943617]
[1693502677786,0.07333257,217.78,217.5,0.26874423]
[1693502677978,0.07333257,217.75,217.45,0.07438253]
[1693502678182,0.07333257,217.74,217.46,0.1945279]
[1693502678384,0.07333257,217.74,217.45,0.1945279]
[1693502678581,0.48888386,217.78,217.43,0.07438253]
[1693502678582,0.07333257,217.73,217.46,0.1945279]
[1693502678782,0.07333257,217.73,217.47,0.1945279]
[1693502678978,0.07333257,217.73,217.43,0.07438253]
[1693502678979,0.07333257,217.73,217.48,0.1945279]
[1693502679179,0.07333257,217.73,217.44,0.1945279]
[1693502679383,0.07333257,217.73,217.45,0.1945279]
[1693502679584,0.07333257,217.73,217.44,0.1945279]
[1693502679884,0.07333257,217.74,217.45,0.1945279]
[1693502680078,0.07333257,217.74,217.43,0.1945279]
[1693502680983,0.07333257,217.75,217.43,0.1945279]
[1693502681178,0.07333257,217.74,217.42,0.1945279]
[1693502681385,0.07333257,217.73,217.43,0.1945279]
[1693502681586,0.07333257,217.73,217.39,0.07438253]
[1693502681587,0.07333257,217.73,217.44,0.1945279]
[1693502681886,0.07333257,217.73,217.45,0.1945279]
[1693502682083,0.07333257,217.73,217.4,0.1945279]
[1693502682287,0.07333257,217.73,217.41,0.1945279]
[1693502682480,0.07333257,217.73,217.4,0.1945279]
[1693502682882,2.4444193,217.87,217.4,0.1945279]
[1693502682883,0.07333257,217.74,217.4,0.1945279]
[1693502683188,0.07333257,217.74,217.41,0.1945279]
[1693502683388,0.07333257,217.74,217.42,0.1945279]
[1693502683581,0.07333257,217.74,217.43,0.1945279]
[1693502683779,0.07333257,217.74,217.44,0.1945279]
[1693502683988,0.07333257,217.75,217.45,0.1945279]
[1693502684287,0.07333257,217.75,217.46,0.1945279]
[1693502684483,0.07333257,217.75,217.37,0.07438253]
[1693502684788,0.07333257,217.75,217.38,0.19459346]
[1693502685688,0.07333257,217.76,217.38,0.26897599]
[1693502685989,0.07333257,217.76,217.39,0.19459346]
[1693502686489,0.07333257,217.76,217.4,0.19459346]
[1693502686888,0.07333257,217.76,217.41,0.19459346]
[1693502687089,0.07333257,217.76,217.38,0.19459346]
[1693502687290,0.07333257,217.76,217.39,0.19459346]
[1693502687491,0.07333257,217.76,217.37,0.19459346]
[1693502687691,0.07333257,217.76,217.38,0.19459346]
[1693502687892,0.07333257,217.76,217.39,0.19459346]
[1693502688091,0.07333257,217.76,217.4,0.19459346]
[1693502688286,0.07333257,217.76,217.41,0.19459346]
[1693502688489,0.07333257,217.76,217.37,0.26897599]
[1693502688691,0.07333257,217.76,217.38,0.19459346]
[1693502690086,0.07333257,217.76,217.39,0.19459346]
[1693502690286,0.07333257,217.76,217.4,0.19459346]
[1693502690587,0.07333257,217.77,217.41,0.19459346]
[1693502690785,0.07333257,217.78,217.42,0.19459346]
[1693502690987,0.07333257,217.77,217.43,0.19459346]
[1693502691184,0.07333257,217.77,217.44,0.19459346]
[1693502691388,0.07333257,217.77,217.45,0.19459346]
[1693502691592,0.07333257,217.77,217.46,0.19459346]
[1693502691786,0.07333257,217.77,217.47,0.19459346]
[1693502691987,0.07333257,217.77,217.48,0.19459346]
[1693502692186,0.07333257,217.77,217.38,0.07438253]
[1693502692493,0.07333257,217.77,217.39,0.19453166]
[1693502692889,0.07333257,217.78,217.39,0.26891419]
[1693502693187,0.07333257,217.78,217.4,0.26891419]
[1693502693392,0.07333257,217.78,217.41,0.19453166]
[1693502693592,0.07333257,217.79,217.41,0.19453166]
[1693502693987,0.07333257,217.78,217.41,0.19453166]
[1693502695395,0.07333257,217.77,217.41,0.19453166]
[1693502697389,0.07333257,217.76,217.41,0.19453166]
[1693502698996,0.14666515,217.78,217.41,0.19453166]
[1693502698997,0.07333257,217.75,217.41,0.19453166]
[1693502700001,0.07333257,217.75,217.41,0.26891419]
[1693502700195,0.07333257,217.75,217.42,0.19453166]
[1693502702698,0.07333257,217.75,217.42,0.26891419]
[1693502702898,0.07333257,217.75,217.43,0.19453166]
[1693502704294,0.07333257,217.76,217.43,0.26891419]
[1693502704494,0.07333257,217.76,217.44,0.19453166]
[1693502705203,0.07333257,217.74,217.44,0.19453166]
[1693502705404,0.07333257,217.74,217.43,0.19453166]
[1693502705704,0.07333257,217.75,217.44,0.19453166]
[1693502705904,0.07333257,217.74,217.44,0.19453166]
[1693502707998,0.07333257,217.73,217.44,0.19453166]
[1693502708902,0.07333257,217.71,217.44,0.19453166]
[1693502709102,0.07333257,217.71,217.43,0.19453166]
[1693502709301,0.07333257,217.71,217.44,0.19453166]
[1693502709500,0.07333257,217.71,217.45,0.19453166]
[1693502709696,0.07333257,217.71,217.46,0.19453166]
[1693502709902,0.07333257,217.71,217.43,0.19453166]
[1693502710197,0.14666515,217.73,217.43,0.19453166]
[1693502710198,0.07333257,217.7,217.44,0.19453166]
[1693502711906,0.07333257,217.7,217.28,0.49588358]
[1693502711907,0.07333257,217.69,217.43,0.26891419]
[1693502712106,0.07333257,217.69,217.44,0.19453166]
[1693502714200,0.07333257,217.7,217.44,0.26891419]
[1693502714406,0.07333257,217.7,217.45,0.19453166]
[1693502717611,0.07333257,217.7,217.44,0.26891419]
[1693502717812,0.07333257,217.7,217.45,0.19453166]
[1693502718606,0.07333257,217.69,217.45,0.19453166]
[1693502718809,0.07333257,217.69,217.44,0.19453166]
[1693502719010,0.07333257,217.69,217.44,0.26891419]
[1693502719206,0.07333257,217.69,217.45,0.19453166]
[1693502720112,0.07333257,217.7,217.45,0.19453166]
[1693502722114,0.07333257,217.7,217.44,0.26891419]
[1693502722414,0.07333257,217.7,217.45,0.19453166]
[1693502722615,0.07333257,217.7,217.46,0.19453166]
[1693502722815,0.07333257,217.7,217.47,0.19453166]
[1693502723009,0.07333257,217.7,217.44,0.07438253]
[1693502723210,0.07333257,217.7,217.45,0.19453736]
[1693502723410,0.07333257,217.71,217.45,0.26891989]
[1693502723611,0.07333257,217.71,217.46,0.19453736]
[1693502724118,0.07333257,217.72,217.46,0.26891989]
[1693502724417,0.07333257,217.72,217.47,0.19453736]
[1693502724620,0.07333257,217.71,217.47,0.19453736]
[1693502724821,0.07333257,217.71,217.46,0.26891989]
[1693502725021,0.07333257,217.71,217.47,0.19453736]
[1693502725214,0.07333257,217.71,217.46,0.19453736]
[1693502725814,0.07333257,217.7,217.46,0.19453736]
[1693502726515,0.07333257,217.7,217.47,0.19453736]
[1693502726718,0.07333257,217.7,217.44,0.07438253]
[1693502726719,0.07333257,217.7,217.45,0.19453736]
[1693502726923,0.07333257,217.7,217.46,0.19455873]
[1693502727215,0.07333257,217.7,217.47,0.19455873]
[1693502727419,0.07333257,217.71,217.45,0.26894126]
[1693502727623,0.07333257,217.71,217.46,0.19455873]
[1693502731928,0.07333257,217.71,217.46,0.26894126]
[1693502732126,0.07333257,217.71,217.47,0.19455873]
[1693502732320,0.07333257,217.71,217.48,0.19455873]
[1693502732623,0.07333257,217.71,217.46,0.07438253]
[1693502732821,0.07333257,217.71,217.47,0.19451797]
[1693502733422,0.07333257,217.71,217.48,0.19451797]
[1693502733630,0.07333257,217.7,217.45,0.07438253]
[1693502733822,0.07333257,217.7,217.46,0.19453965]
[1693502734624,0.07333257,217.71,217.46,0.19453965]
[1693502735022,0.07333257,217.71,217.46,0.26892218]
[1693502735227,0.07333257,217.72,217.47,0.26892218]
[1693502735429,0.07333257,217.73,217.48,0.26892218]
[1693502735726,0.07333257,217.73,217.49,0.19453965]
[1693502735920,0.07333257,217.74,217.49,0.26892218]
[1693502736120,0.07333257,217.74,217.5,0.19453965]
[1693502736322,0.07333257,217.74,217.51,0.19453965]
[1693502736628,0.07333257,217.74,217.48,0.07438253]
[1693502736828,0.07333257,217.74,217.49,0.19442995]
[1693502737422,0.07333257,217.74,217.48,0.19442995]
[1693502737623,0.07333257,217.74,217.49,0.19442995]
[1693502738022,0.07333257,217.74,217.48,0.19442995]
[1693502738424,0.07333257,217.8,217.53,0.07438253]
[1693502738626,0.07333257,217.81,217.54,0.26881248]
[1693502738931,0.07333257,217.84,217.55,0.19442995]
[1693502739132,0.07333257,217.84,217.56,0.19442995]
[1693502739332,0.07333257,217.84,217.57,0.19442995]
[1693502739533,0.07333257,217.84,217.58,0.19442995]
[1693502739727,0.07333257,217.85,217.53,0.19442995]
[1693502739929,0.07333257,217.85,217.54,0.19442995]
[1693502740129,0.07333257,217.85,217.53,0.26881248]
[1693502740332,0.07333257,217.85,217.54,0.19442995]
[1693502741026,0.07333257,217.87,217.51,0.19442995]
[1693502741229,0.07333257,217.87,217.52,0.19442995]
[1693502741531,0.07333257,217.87,217.53,0.19442995]
[1693502741731,0.07333257,217.87,217.54,0.19442995]
[1693502741935,0.07333257,217.88,217.51,0.19442995]
[1693502742231,0.07333257,217.88,217.52,0.19442995]
[1693502742428,0.07333257,217.88,217.5,0.19442995]
[1693502742624,0.07333257,217.89,217.51,0.19442995]
[1693502742829,0.07333257,217.94,217.54,0.07438253]
[1693502743029,0.07333257,217.95,217.55,0.26881248]
[1693502743225,0.07333257,217.95,217.56,0.19442995]
[1693502743428,0.07333257,217.94,217.56,0.19442995]
[1693502743628,0.07333257,217.94,217.55,0.19442995]
[1693502743830,0.07333257,217.96,217.56,0.19442995]
[1693502744030,0.07333257,217.96,217.52,0.19442995]
[1693502744230,0.07333257,217.96,217.53,0.19442995]
[1693502744426,0.07333257,217.97,217.54,0.19442995]
[1693502744629,0.07333257,217.97,217.51,0.07438253]
[1693502744630,0.07333257,217.97,217.55,0.19442995]
[1693502744833,0.07333257,217.97,217.56,0.19442995]
[1693502745031,0.07333257,217.99,217.57,0.19442995]
[1693502745235,0.91699249,217.98,217.5,0.19442995]
[1693502745534,0.84365992,217.97,217.51,0.19442995]
[1693502745828,0.07333257,217.99,217.52,0.19442995]
[1693502746030,0.84365658,217.98,217.53,0.19442995]
[1693502746230,0.84365658,217.98,217.47,0.07438253]
[1693502746231,0.84365658,217.97,217.54,0.19442995]
[1693502746430,0.84365658,217.99,217.48,0.19442995]
[1693502746631,0.84365287,217.98,217.49,0.19442995]
[1693502746831,0.84365287,217.99,217.48,0.19442995]
[1693502747032,0.84365287,217.98,217.49,0.19442995]
[1693502747235,0.84365287,217.97,217.5,0.19442995]
[1693502747534,0.07333257,218.01,217.51,0.19442995]
[1693502747729,0.84364025,218.0,217.48,0.19442995]
[1693502747934,0.84364025,218.0,217.49,0.19442995]
[1693502748131,0.84364025,218.01,217.47,0.19442995]
[1693502748328,0.84364025,218.0,217.48,0.19442995]
[1693502748532,0.84364025,218.0,217.49,0.19442995]
[1693502748830,0.84364025,218.0,217.5,0.19442995]
[1693502749029,0.84364025,218.0,217.51,0.19442995]
[1693502749335,0.84364025,217.99,217.52,0.19442995]
[1693502749536,0.84364025,218.01,217.45,0.19442995]
[1693502749834,0.07333257,218.02,217.46,0.19442995]
[1693502749835,0.84364025,218.0,217.46,0.19442995]
[1693502750031,0.84364025,218.01,217.47,0.19442995]
[1693502750237,0.84364025,218.0,217.48,0.19442995]
[1693502750535,0.84364025,217.99,217.49,0.19442995]
[1693502750736,0.84364025,218.01,217.45,0.19442995]
[1693502750929,0.84364025,218.01,217.38,0.14876507]
[1693502750930,0.84364025,218.0,217.46,0.19442995]
[1693502751133,0.84364025,218.0,217.43,0.07438253]
[1693502751134,0.84364025,218.02,217.44,0.19442995]
[1693502751338,0.84364025,218.01,217.45,0.19442995]
[1693502751536,0.84364025,218.0,217.46,0.19442995]
[1693502751737,0.84364025,217.99,217.47,0.19442995]
[1693502751937,0.07333257,218.03,217.43,0.07438253]
[1693502751938,0.84364025,217.98,217.48,0.19442995]
[1693502752134,0.84364025,218.02,217.44,0.19442995]
[1693502752338,0.84364025,218.01,217.45,0.19442995]
[1693502752536,0.84364025,218.02,217.43,0.19442995]
[1693502752833,0.84364025,218.01,217.44,0.19442995]
[1693502753034,0.84364025,218.0,217.45,0.19442995]
[1693502753238,0.84364025,217.99,217.46,0.19442995]
[1693502753434,0.84364025,217.99,217.42,0.07438253]
[1693502753435,0.84364025,217.98,217.47,0.19442995]
[1693502753634,0.84364025,217.97,217.48,0.19442995]
[1693502753833,0.84364025,218.02,217.43,0.19442995]
[1693502754039,0.84364025,218.01,217.44,0.19442995]
[1693502754340,0.84364025,218.0,217.45,0.19442995]
[1693502754534,0.84364025,218.02,217.42,0.26881248]
[1693502754735,0.84364025,218.01,217.43,0.19442995]
[1693502755039,0.84364025,218.0,217.43,0.19442995]